bitfinex-derivatives/quotes_ETHF0:USTF0_20251223
["timestamp","ask_amount","ask_price","bid_price","bid_amount"]
[1766486089363,3.372,2967.6,2967.0,4.57247798]
[1766486089968,3.37998842,2967.6,2967.0,4.57753162]
[1766486090168,3.372,2967.8,2967.1,0.0996]
[1766486090674,3.372,2967.8,2967.0,4.57753162]
[1766486091270,0.00505364,2967.7,2967.0,4.57753162]
[1766486091468,0.00505364,2967.7,2967.1,0.1672]
[1766486095669,3.371,2968.2,2967.5,1.20047798]
[1766486095870,8.429,2968.5,2967.8,1.20047798]
[1766486095871,3.371,2968.4,2967.8,1.20047798]
[1766486096377,0.2536,2968.3,2967.8,1.20047798]
[1766486096778,0.2628177,2968.3,2967.8,1.20441962]
[1766486096980,3.371,2968.4,2967.8,1.20441962]
[1766486097175,3.6246,2968.4,2967.8,1.45801962]
[1766486097878,3.371,2968.4,2967.8,4.57541962]
[1766486098081,0.00775503,2968.4,2967.8,4.57541962]
[1766486098380,0.26655504,2968.4,2967.8,4.83421962]
[1766486098573,0.00775503,2968.4,2967.8,4.57541962]
[1766486099568,3.371,2968.5,2967.8,4.57541962]
[1766486099772,3.371,2968.7,2968.1,1.20047798]
[1766486100175,0.4037,2968.6,2968.1,1.20047798]
[1766486100575,0.41153244,2968.6,2968.1,1.20047798]
[1766486101575,0.41153244,2968.6,2968.0,0.4037]
[1766486101776,0.00783244,2968.6,2967.8,0.00394164]
[1766486101979,0.16856,2968.4,2967.8,0.00394164]
[1766486102180,8.669,2968.4,2967.0,1.20553162]
[1766486102380,0.16858,2968.0,2967.1,3.371]
[1766486102679,0.1686,2967.7,2967.1,0.4139]
[1766486102876,0.1686,2967.7,2967.0,3.37605364]
[1766486103076,0.5767,2967.7,2967.1,0.4081]
[1766486103383,0.1686,2967.7,2967.0,3.37868902]
[1766486103682,0.4081,2967.6,2967.0,3.78678902]
[1766486106584,0.1686,2967.6,2967.0,0.00768902]
[1766486106785,0.16861,2967.5,2966.9,4.57147798]
[1766486107383,0.57691,2967.5,2966.9,4.97977798]
[1766486107883,0.57691,2967.5,2966.9,4.98764068]
[1766486108278,0.57691,2967.5,2966.9,1.61664068]
[1766486108584,0.57691,2967.5,2966.9,3.7871627]
[1766486108787,0.16861,2967.5,2966.9,0.0078627]
[1766486109186,0.4083,2967.4,2966.9,0.4161627]
[1766486109586,0.16863,2967.1,2966.4,3.371]
[1766486109780,3.53963,2967.1,2966.3,3.371]
[1766486110180,0.41979601,2967.0,2966.4,0.43579999]
[1766486110376,0.58842601,2967.0,2966.1,1.20047798]
[1766486110579,0.58842601,2967.0,2966.4,0.00932861]
[1766486110580,0.17368364,2967.0,2966.4,0.00932861]
[1766486112481,0.4445,2966.9,2966.4,1e-08]
[1766486112776,0.61314,2966.9,2966.3,0.4445]
[1766486112980,0.16864,2966.9,2966.2,3.371]
[1766486113180,0.16864,2966.9,2966.1,1.20047798]
[1766486113380,0.16864,2966.9,2966.2,3.371]
[1766486113582,0.16864,2966.9,2966.3,0.00505364]
[1766486113783,0.61334,2966.9,2966.3,0.44975364]
[1766486114392,0.4447,2966.8,2966.2,3.8157]
[1766486114592,0.00505364,2967.0,2966.7,1.20047798]
[1766486114795,7.797,2967.2,2966.4,1.20047798]
[1766486114978,0.4447,2967.1,2966.5,0.4447]
[1766486115183,0.4447,2967.1,2966.4,3.371]
[1766486115382,7.797,2967.2,2966.4,3.37434177]
[1766486115586,0.5247,2967.0,2966.4,3.37434177]
[1766486115794,0.5247,2967.0,2966.5,0.00505364]
[1766486115991,0.00505364,2967.1,2966.5,0.00505364]
[1766486116198,0.5247,2967.0,2966.5,0.00505364]
[1766486116492,0.16864,2966.9,2966.5,0.00505364]
[1766486118888,0.16864,2966.9,2966.3,3.371]
[1766486119289,0.5249,2966.8,2966.3,3.371]
[1766486119901,0.5249,2966.8,2966.3,3.37942377]
[1766486121386,0.5249,2966.8,2966.3,0.00842377]
[1766486121587,0.5249,2966.8,2966.2,3.89689999]
[1766486122691,0.5249,2966.8,2966.2,0.528374]
[1766486122887,0.5249,2966.8,2966.2,3.900374]
[1766486123087,3.54064,2966.9,2966.2,3.37547401]
[1766486123394,0.525,2966.8,2966.2,3.90047401]
[1766486124197,1.300296,2966.7,2966.2,3.37547401]
[1766486124497,3.54064,2966.9,2966.2,3.37547401]
[1766486125299,3.54064,2966.9,2966.2,0.00347401]
[1766486125491,3.54064,2966.9,2966.2,3.37547401]
[1766486126000,0.4542,2966.8,2966.2,3.37547401]
[1766486126394,0.16864,2966.8,2966.2,3.37547401]
[1766486131586,0.16865,2966.7,2966.2,4.01e-06]
[1766486131785,0.16865,2966.7,2965.6,1.20047798]
[1766486131990,0.16865,2966.7,2965.7,9.292]
[1766486132392,0.16865,2966.7,2965.8,0.4634]
[1766486132699,0.16865,2966.7,2965.8,0.46601993]
[1766486132901,0.16865,2966.7,2965.8,0.00261993]
[1766486134504,0.16865,2966.7,2965.9,3.372]
[1766486135003,0.16865,2966.7,2966.0,0.45759999]
[1766486135901,0.16865,2966.7,2965.9,3.372]
[1766486138000,0.16865,2966.7,2965.8,0.00261993]
[1766486138198,0.16866,2966.5,2965.8,0.00261993]
[1766486138400,0.17164041,2966.5,2965.8,0.00261993]
[1766486147310,0.17164041,2966.5,2965.6,1.20119466]
[1766486147508,0.17164041,2966.5,2965.7,3.372]
[1766486148311,0.4452,2966.4,2965.7,1.62367293]
[1766486149211,0.17164041,2966.5,2965.7,1.62367293]
[1766486149413,0.4801,2966.4,2965.7,2.10377293]
[1766486149900,0.17164041,2966.5,2965.7,2.10377293]
[1766486150103,0.4801,2966.4,2965.7,2.10377293]
[1766486151113,0.17164041,2966.5,2965.7,1.62367293]
[1766486152216,0.16867,2966.4,2965.7,1.62367293]
[1766486154416,3.372,2966.3,2965.7,1.62367293]
[1766486169514,2.6301,2966.3,2965.7,1.62367293]
[1766486169822,3.37498041,2966.5,2965.8,1.20119466]
[1766486170126,3.54063,2967.0,2966.2,1.20119466]
[1766486170317,3.54063,2967.0,2966.3,3.372]
[1766486170522,3.76963,2967.0,2966.3,3.601]
[1766486170827,3.76963,2967.0,2966.3,3.372]
[1766486171029,3.77310429,2967.0,2966.3,3.372]
[1766486176028,3.54410429,2967.0,2966.3,3.372]
[1766486176530,3.54410429,2967.0,2966.4,1.20119466]
[1766486178120,3.54410429,2967.0,2966.3,3.372]
[1766486178327,3.54410429,2967.0,2966.4,1.20119466]
[1766486178626,3.54410429,2967.0,2966.6,1.20119466]
[1766486178824,3.372,2967.3,2966.8,1.20119466]
[1766486179726,3.38113607,2967.3,2966.8,1.2062483]
[1766486179923,6.01161,2967.5,2966.9,0.2298]
[1766486180931,6.02087999,2967.5,2966.9,0.2298]
[1766486181231,6.02087999,2967.5,2967.0,1.20119466]
[1766486182025,6.02087999,2967.5,2966.9,3.372]
[1766486183530,3.372,2967.6,2967.0,1.20119466]
[1766486183724,1.56113095,2967.6,2967.0,1.20119466]
[1766486184131,0.16861,2967.5,2967.2,1.20119466]
[1766486184431,9.215,2967.9,2967.2,4.57319466]
[1766486184730,0.28375364,2967.8,2967.2,4.57319466]
[1766486185036,0.28375364,2967.8,2967.2,4.85189466]
[1766486185234,0.00505364,2967.8,2967.2,4.57319466]
[1766486185625,0.00505364,2967.8,2967.4,1.20119466]
[1766486185822,1.36979466,2967.7,2966.8,0.00505364]
[1766486186037,0.1686,2967.6,2966.9,3.372]
[1766486186334,0.4633,2967.6,2966.9,3.6667]
[1766486186529,0.1686,2967.6,2966.9,3.6667]
[1766486186734,0.00505364,2967.5,2966.9,3.6667]
[1766486186927,0.29975364,2967.5,2966.9,0.2947]
[1766486187126,0.29975364,2967.5,2966.9,3.6667]
[1766486187325,0.00505364,2967.5,2966.9,3.372]
[1766486187534,0.2947,2967.4,2966.9,3.6667]
[1766486187731,0.2947,2967.4,2966.9,3.372]
[1766486188839,0.2947,2967.4,2966.8,0.29975364]
[1766486189137,0.00505364,2967.5,2966.9,3.372]
[1766486189436,0.00505364,2967.5,2966.9,3.6667]
[1766486189437,0.29975364,2967.5,2966.9,3.6667]
[1766486190838,0.29975364,2967.5,2966.9,0.2947]
[1766486191137,0.29975364,2967.5,2966.9,3.6657]
[1766486191334,0.00505364,2967.5,2966.9,3.371]
[1766486191630,0.29975364,2967.5,2966.9,3.6657]
[1766486193241,0.19975364,2967.5,2966.9,4.86689466]
[1766486193534,0.1686,2967.6,2967.1,1.20119466]
[1766486193740,3.372,2967.8,2967.3,1.20119466]
[1766486193934,0.00369239,2967.9,2967.3,1.20119466]
[1766486194128,0.00369239,2967.9,2967.4,0.291]
[1766486194331,0.00874603,2967.9,2967.4,0.291]
[1766486194939,3.371,2968.1,2967.5,1.20119466]
[1766486195139,3.6621,2968.1,2967.5,1.20119466]
[1766486195541,3.6621,2968.1,2967.3,1.49229466]
[1766486195838,3.6621,2968.1,2967.3,1.20119466]
[1766486196036,0.00336918,2968.0,2967.4,0.2911]
[1766486196238,0.17194918,2968.0,2966.9,1.20119466]
[1766486196543,0.17194918,2968.0,2967.0,4.724]
[1766486196846,0.2911,2967.9,2967.0,5.0151]
[1766486197045,0.2911,2967.9,2966.9,1.20119466]
[1766486197243,0.16858,2967.9,2966.9,1.20119466]
[1766486197449,1.36978466,2967.7,2967.0,3.371]
[1766486198347,0.16859,2967.7,2967.0,3.371]
[1766486199039,0.16859,2967.7,2967.1,1.20119466]
[1766486204245,0.16859,2967.7,2967.0,3.371]
[1766486204445,0.16859,2967.7,2967.0,4.57219466]
[1766486204744,0.16859,2967.7,2967.0,3.271]
[1766486207246,0.16859,2967.7,2967.1,3.371]
[1766486209240,0.16861,2967.5,2967.1,3.371]
[1766486209438,0.16862,2967.2,2966.2,1.20009216]
[1766486209646,0.16862,2967.2,2966.3,9.286]
[1766486210146,0.05505364,2967.1,2966.4,0.3272]
[1766486210538,0.16862,2967.2,2966.5,0.00505364]
[1766486210740,0.16862,2967.2,2966.6,3.371]
[1766486211346,0.16862,2967.2,2966.7,0.3272]
[1766486211748,0.16862,2967.2,2966.6,3.371]
[1766486211947,0.16862,2967.2,2966.7,0.3272]
[1766486212151,0.16862,2967.2,2966.7,3.6982]
[1766486212455,0.16862,2967.2,2966.7,3.371]
[1766486212643,0.16862,2967.2,2966.8,0.3272]
[1766486215550,0.3272,2967.4,2966.8,0.3272]
[1766486215938,3.371,2967.5,2966.7,3.371]
[1766486216254,0.16862,2967.2,2966.7,3.371]
[1766486217551,3.371,2967.5,2966.7,3.371]
[1766486217752,0.16862,2967.2,2966.7,3.371]
[1766486219553,3.371,2967.5,2966.7,3.371]
[1766486220453,0.16862,2967.2,2966.7,3.371]
[1766486223958,0.16862,2967.2,2966.5,1.2051458]
[1766486224157,0.16862,2967.2,2966.6,9.286]
[1766486225659,3.371,2967.5,2966.6,9.286]
[1766486226557,0.16862,2967.2,2966.6,9.286]
[1766486227060,0.05505364,2967.1,2966.6,9.286]
[1766486227659,0.16862,2967.2,2966.6,9.286]
[1766486228361,3.371,2967.5,2966.6,9.286]
[1766486228558,3.371,2967.5,2966.6,10.48609216]
[1766486228756,2.0784,2967.5,2966.6,10.48609216]
[1766486228958,3.371,2967.8,2966.9,1.20009216]
[1766486229155,3.371,2967.8,2967.0,9.285]
[1766486230056,3.371,2967.8,2966.5,0.00505364]
[1766486230057,3.67970001,2967.8,2966.5,0.00505364]
[1766486230262,3.67970001,2967.8,2966.6,8.876]
[1766486230263,0.16862,2967.4,2966.6,8.876]
[1766486230657,0.47732001,2967.4,2966.7,0.3087]
[1766486231058,0.47732001,2967.4,2966.6,8.876]
[1766486231259,0.47732001,2967.4,2966.7,0.3068]
[1766486231863,0.47732001,2967.4,2966.6,8.876]
[1766486232063,0.47732001,2967.4,2966.7,0.3068]
[1766486232563,0.47732001,2967.4,2966.6,8.876]
[1766486232764,0.47732001,2967.4,2966.7,0.3068]
[1766486233062,3.371,2967.5,2966.7,3.6778]
[1766486233063,0.16862,2967.3,2966.7,3.6778]
[1766486233262,0.47542,2967.3,2966.7,3.6778]
[1766486235859,0.16862,2967.3,2966.7,3.371]
[1766486236163,3.371,2967.2,2966.7,3.371]
[1766486237567,0.00336918,2968.0,2966.6,0.3068]
[1766486237770,0.1686,2967.6,2966.5,3.37605364]
[1766486238066,3.371,2967.5,2966.6,1.20009216]
[1766486238255,3.371,2967.5,2966.6,1.51839215]
[1766486238458,3.371,2967.5,2966.6,1.20009216]
[1766486243670,0.16861,2967.4,2966.5,3.37605364]
[1766486243866,0.16861,2967.4,2966.5,3.06598]
[1766486244762,0.16861,2967.4,2966.7,0.00505364]
[1766486245471,0.1943,2967.3,2966.7,0.00505364]
[1766486248868,0.16861,2967.4,2966.7,0.00505364]
[1766486249072,0.16861,2967.4,2966.7,3.37605364]
[1766486251170,0.16861,2967.4,2966.7,0.00505364]
[1766486252875,0.1884,2967.3,2966.7,0.19345363]
[1766486253278,0.16861,2967.4,2966.7,0.00505364]
[1766486253478,0.1884,2967.3,2966.7,0.00505364]
[1766486254882,0.0884,2967.3,2966.7,0.00505364]
[1766486255882,0.16861,2967.4,2966.7,0.00505364]
[1766486256382,0.16862,2967.3,2966.7,0.00505364]
[1766486256583,0.16862,2967.2,2966.2,1.20009216]
[1766486256782,0.16862,2967.2,2966.7,0.1]
[1766486256982,0.16862,2967.2,2966.3,4.719]
[1766486257175,0.1223,2967.1,2966.4,0.1223]
[1766486257690,0.1223,2967.1,2966.5,0.00505364]
[1766486258990,3.53962,2967.2,2966.5,0.00505364]
[1766486262290,3.53962,2967.2,2966.5,3.37605364]
[1766486263094,3.53962,2967.2,2966.5,0.00505364]
[1766486263284,0.16863,2967.1,2966.5,0.00505364]
[1766486263585,0.29093,2967.1,2966.5,3.49835364]
[1766486263785,0.29093,2967.1,2966.5,0.12735364]
[1766486263985,0.29093,2967.1,2966.5,3.49835364]
[1766486265293,0.16863,2967.1,2966.5,3.371]
[1766486265494,3.371,2967.2,2966.5,3.371]
[1766486265698,3.4913,2967.2,2966.6,0.1203]
[1766486266299,3.4913,2967.2,2966.6,0.12535364]
[1766486266597,0.16863,2967.1,2966.6,0.12535364]
[1766486275904,0.16863,2967.1,2966.6,0.00505364]
[1766486276105,0.16357636,2967.1,2966.6,0.00505364]
[1766486276610,3.371,2967.2,2966.6,0.00505364]
[1766486276800,3.371,2967.2,2966.7,0.11579999]
[1766486277305,3.371,2967.2,2966.6,1.20536489]
[1766486277897,3.371,2967.2,2966.6,0.00505364]
[1766486278406,0.16863,2967.1,2966.6,0.00505364]
[1766486281703,0.16863,2967.1,2966.1,1.20031125]
[1766486282010,0.16863,2967.1,2966.2,9.284]
[1766486282509,0.1193,2967.0,2966.3,0.1193]
[1766486282710,0.1193,2967.0,2966.4,0.00505364]
[1766486282908,0.16863,2967.1,2966.5,3.371]
[1766486283109,0.1193,2966.9,2966.5,3.371]
[1766486283407,0.16863,2967.1,2966.5,3.371]
[1766486285910,0.16863,2967.1,2966.5,4.57131125]
[1766486287613,0.16863,2967.1,2966.5,3.371]
[1766486297121,1.20031125,2969.1,2966.8,1.20031125]
[1766486297321,3.371,2967.9,2966.8,4.57131125]
[1766486297820,0.0354,2967.8,2966.9,0.0354]
[1766486298221,3.371,2967.9,2966.8,4.57131125]
[1766486298421,0.1686,2967.6,2966.9,0.0273]
[1766486298623,3.5396,2967.6,2966.9,0.0273]
[1766486298822,3.5396,2967.6,2966.8,4.57131125]
[1766486299222,0.1686,2967.6,2967.0,1.20031125]
[1766486299521,0.1686,2967.6,2966.8,4.57131125]
[1766486299723,0.1686,2967.6,2966.9,0.0273]
[1766486300111,0.1686,2967.6,2966.8,4.57131125]
[1766486300321,0.1686,2967.6,2966.9,0.0273]
[1766486300721,0.1686,2967.6,2966.8,4.57131125]
[1766486300924,0.1686,2967.6,2966.9,0.0273]
[1766486301421,0.1686,2967.6,2966.8,4.57131125]
[1766486301624,0.1686,2967.6,2966.9,0.0273]
[1766486302425,0.1686,2967.6,2966.8,4.57131125]
[1766486302622,0.1686,2967.6,2966.9,0.0273]
[1766486303224,0.1686,2967.6,2966.8,4.57131125]
[1766486303425,0.1686,2967.6,2966.9,0.0273]
[1766486304416,0.1686,2967.6,2966.8,4.57131125]
[1766486304613,0.1686,2967.6,2966.9,0.0211]
[1766486305525,0.1686,2967.6,2966.8,4.57131125]
[1766486305727,0.1686,2967.6,2966.9,0.0211]
[1766486306230,0.1686,2967.6,2966.8,4.57131125]
[1766486306427,0.1686,2967.6,2966.9,0.0211]
[1766486306827,0.1686,2967.6,2966.8,4.57131125]
[1766486307022,0.1686,2967.6,2967.0,1.20031125]
[1766486307327,3.371,2967.9,2967.1,3.371]
[1766486308529,0.1686,2967.6,2967.1,3.371]
[1766486309028,0.1686,2967.6,2967.2,0.02439999]
[1766486309430,0.1686,2967.6,2967.1,9.282]
[1766486315330,0.1686,2967.6,2967.1,5.911]
[1766486315534,0.1686,2967.6,2967.1,9.282]
[1766486317635,0.1686,2967.6,2967.3,0.03371631]
[1766486318131,0.1686,2967.6,2967.3,1.631e-05]
[1766486318338,0.1686,2967.6,2967.1,9.282]
[1766486318638,0.1686,2967.6,2967.2,0.0223]
[1766486319137,3.371,2967.9,2967.3,0.023]
[1766486319333,3.371,2967.9,2967.1,10.48231125]
[1766486319533,3.371,2967.9,2967.1,9.282]
[1766486321435,3.53958,2967.9,2967.1,9.282]
[1766486323641,0.16859,2967.8,2967.1,9.282]
[1766486325740,0.16859,2967.8,2967.2,9.281]
[1766486327939,0.16859,2967.8,2966.6,1.20006572]
[1766486328145,0.16859,2967.8,2966.7,9.281]
[1766486328346,0.16859,2967.8,2966.8,5.91]
[1766486328546,0.16859,2967.8,2966.6,1.20006572]
[1766486328752,0.16859,2967.8,2966.7,9.281]
[1766486329363,0.16859,2967.8,2966.8,0.01759999]
[1766486329750,0.16859,2967.8,2966.7,9.281]
[1766486330057,0.16859,2967.8,2966.8,0.01759999]
[1766486330258,0.16859,2967.8,2966.9,1.20006572]
[1766486330457,0.00336918,2968.0,2967.2,1.20006572]
[1766486330658,0.00416784,2968.1,2967.3,9.281]
[1766486330859,3.371,2968.2,2967.3,9.29859999]
[1766486331059,3.53957,2968.2,2967.3,9.281]
[1766486331754,0.00505364,2968.0,2967.3,9.281]
[1766486332356,0.00505364,2968.0,2967.4,0.0437]
[1766486332657,0.00505364,2968.0,2967.5,3.575]
[1766486337262,0.16857,2968.1,2967.5,3.575]
[1766486337465,3.37516647,2968.2,2967.5,3.575]
[1766486338360,0.00505364,2968.1,2967.5,3.575]
[1766486338561,0.17362364,2968.1,2967.5,3.575]
[1766486338757,0.17362364,2968.1,2967.6,0.037]
[1766486338957,0.17362364,2968.1,2967.5,3.575]
[1766486340463,3.37516647,2968.2,2967.5,3.575]
[1766486340671,3.37516647,2968.2,2967.6,0.037]
[1766486341167,0.16857,2968.1,2967.5,3.575]
[1766486341369,3.37516647,2968.2,2967.5,3.575]
[1766486341565,3.37516647,2968.2,2967.6,0.0439]
[1766486341971,3.37516647,2968.2,2967.5,3.575]
[1766486342171,3.37516647,2968.2,2967.6,0.04729999]
[1766486342368,0.16857,2968.1,2967.5,3.575]
[1766486342563,0.17362364,2968.1,2967.5,3.575]
[1766486342857,0.17362364,2968.1,2967.6,0.04729999]
[1766486343974,0.17362364,2968.1,2967.5,3.575]
[1766486352681,8.146,2968.5,2967.5,3.575]
[1766486352867,0.16857,2968.1,2967.5,3.575]
[1766486353072,8.1968,2968.5,2967.6,0.0508]
[1766486353270,0.16857,2968.1,2967.6,0.0508]
[1766486353469,8.1968,2968.5,2967.5,3.575]
[1766486353675,0.00505364,2968.3,2967.6,0.0508]
[1766486354069,0.16857,2968.1,2967.5,3.575]
[1766486354273,0.16857,2968.1,2967.6,0.0576]
[1766486354578,0.16857,2968.1,2967.7,3.371]
[1766486354772,0.0576,2968.0,2967.7,3.371]
[1766486355278,0.0576,2968.0,2967.3,0.0576]
[1766486355476,0.16857,2968.1,2967.4,3.371]
[1766486355677,0.16857,2968.1,2967.4,3.42969999]
[1766486355878,0.16857,2968.1,2967.4,3.371]
[1766486356074,0.16857,2968.1,2966.9,1.20006572]
[1766486356380,0.1686,2967.7,2967.0,3.37]
[1766486356568,3.37,2967.6,2966.8,3.37]
[1766486356770,3.4287,2967.6,2966.5,0.05869999]
[1766486357084,0.16861,2967.5,2966.6,3.37]
[1766486357265,0.22731,2967.5,2966.6,3.37]
[1766486357467,0.16861,2967.5,2966.6,3.37]
[1766486358677,0.16861,2967.5,2966.4,0.00505364]
[1766486358873,0.0553,2967.4,2966.5,3.4263]
[1766486359074,3.371,2967.3,2966.5,3.371]
[1766486359582,3.371,2967.3,2966.4,0.00505364]
[1766486359783,0.0553,2967.2,2966.5,0.0553]
[1766486360080,0.0553,2967.2,2966.6,3.371]
[1766486360276,3.371,2967.3,2966.6,3.371]
[1766486360481,0.0553,2967.2,2966.6,3.371]
[1766486360874,3.371,2967.3,2966.6,3.371]
[1766486361075,0.0553,2967.2,2966.6,3.371]
[1766486361480,3.371,2967.3,2966.6,3.371]
[1766486361679,0.0553,2967.2,2966.6,3.371]
[1766486362279,0.0553,2967.2,2966.6,3.4263]
[1766486363487,0.0553,2967.2,2966.6,0.0553]
[1766486363679,0.0553,2967.2,2966.6,3.4263]
[1766486363880,0.0553,2967.2,2966.6,0.0553]
[1766486364079,3.371,2967.3,2966.5,3.371]
[1766486364384,0.0553,2967.2,2966.5,3.4263]
[1766486365184,3.371,2967.3,2966.5,3.4263]
[1766486365486,0.0553,2967.2,2966.5,3.4263]
[1766486365984,3.53962,2967.3,2966.5,3.4263]
[1766486366283,0.0553,2967.2,2966.5,3.4263]
[1766486366489,0.0553,2967.2,2966.5,0.0553]
[1766486366683,0.0553,2967.2,2966.5,3.4263]
[1766486367283,0.0553,2967.2,2966.5,3.371]
[1766486369486,3.53962,2967.3,2966.5,3.371]
[1766486369693,2.69472,2967.3,2966.5,3.371]
[1766486374296,0.16862,2967.2,2966.5,3.371]
[1766486375201,0.16863,2967.1,2966.4,0.00505364]
[1766486375400,0.23863,2967.1,2966.5,3.44099999]
[1766486375902,0.23863,2967.1,2966.5,3.371]
[1766486375903,0.16863,2967.1,2966.5,3.371]
[1766486379293,2.5261,2967.3,2966.5,3.371]
[1766486379492,0.16863,2967.1,2966.5,3.371]
[1766486379909,1.20006572,2967.6,2966.5,3.371]
[1766486380207,3.371,2967.5,2966.5,3.371]
[1766486380505,3.53961,2967.5,2966.5,3.371]
[1766486380706,0.0727,2967.4,2966.6,0.0727]
[1766486380907,0.24131,2967.4,2966.6,0.0727]
[1766486381107,0.16861,2967.4,2966.5,3.371]
[1766486381310,0.076,2967.3,2966.6,0.076]
[1766486381807,0.076,2967.3,2966.5,3.371]
[1766486382009,0.076,2967.3,2966.6,0.076]
[1766486382510,0.16861,2967.4,2966.5,3.371]
[1766486382711,0.24461,2967.4,2966.6,0.076]
[1766486383109,0.24461,2967.4,2966.5,3.371]
[1766486383312,0.24461,2967.4,2966.6,0.076]
[1766486383713,0.24461,2967.4,2966.5,3.371]
[1766486383914,0.24461,2967.4,2966.6,0.076]
[1766486384311,0.24461,2967.4,2966.5,3.371]
[1766486384611,0.24461,2967.4,2966.6,0.076]
[1766486385219,0.24461,2967.4,2966.5,3.371]
[1766486385417,0.24461,2967.4,2966.6,0.076]
[1766486385713,3.371,2967.5,2966.6,0.076]
[1766486385920,3.371,2967.5,2966.7,0.06289]
[1766486386114,3.371,2967.5,2966.5,3.371]
[1766486387021,0.16861,2967.4,2966.6,0.0807]
[1766486387515,0.16861,2967.4,2966.7,0.0807]
[1766486387709,0.16861,2967.4,2966.8,3.371]
[1766486387916,3.371,2967.9,2966.8,3.371]
[1766486390018,3.371,2967.9,2967.0,1.19995306]
[1766486390218,3.371,2967.9,2967.1,3.371]
[1766486391917,3.371,2967.9,2967.2,0.0795]
[1766486392124,3.145,2967.9,2967.2,1.27945306]
[1766486392422,0.16858,2968.0,2967.2,1.19995306]
[1766486392723,0.16858,2968.0,2967.3,0.0795]
[1766486392922,0.16858,2968.0,2967.4,3.371]
[1766486393325,0.16858,2968.0,2967.5,0.0883]
[1766486394625,0.0795,2968.1,2967.5,0.0883]
[1766486394827,3.4593,2968.2,2967.4,4.57095306]
[1766486395030,3.371,2968.2,2967.6,0.0883]
[1766486395526,3.371,2968.2,2967.4,4.57095306]
[1766486398323,3.371,2968.2,2967.4,3.371]
[1766486399323,3.53957,2968.2,2967.4,3.371]
[1766486403025,0.16857,2968.1,2967.4,3.371]
[1766486403230,0.16858,2968.0,2967.4,3.371]
[1766486408832,1.36853306,2968.0,2966.6,40.8]
[1766486409028,0.16858,2967.9,2967.1,0.06289]
[1766486409223,1.19995306,2967.8,2966.4,0.00505364]
[1766486409428,1.19995306,2967.4,2966.5,3.4456]
[1766486409627,4.57095306,2967.4,2966.5,3.4456]
[1766486409829,4.57095306,2967.4,2966.5,3.371]
[1766486410134,0.0746,2967.3,2966.6,0.0746]
[1766486410538,0.0746,2967.3,2966.5,3.371]
[1766486410739,0.0746,2967.3,2966.6,0.0746]
[1766486411332,0.0746,2967.3,2966.5,3.371]
[1766486411533,0.0746,2967.3,2966.6,0.0746]
[1766486412740,4.73956306,2967.4,2966.5,3.371]
[1766486412941,4.81416306,2967.4,2966.6,0.0746]
[1766486413332,4.81416306,2967.4,2966.6,3.371]
[1766486413638,4.73956306,2967.4,2966.7,0.071]
[1766486413836,3.53961,2967.4,2966.7,0.071]
[1766486414042,3.60391,2967.4,2966.6,3.371]
[1766486415947,3.53961,2967.4,2966.6,3.371]
[1766486422242,1.36857306,2967.3,2966.4,0.00505364]
[1766486422449,1.36857306,2967.3,2966.5,9.278]
[1766486422844,1.36857306,2967.3,2966.6,0.0631]
[1766486423043,1.36857306,2967.3,2966.6,3.371]
[1766486423549,0.16862,2967.3,2966.6,3.371]
[1766486423751,0.23172,2967.3,2966.7,0.0631]
[1766486424248,0.16883,2967.3,2966.7,0.0631]
[1766486426349,0.10573,2967.3,2966.7,0.0631]
[1766486426552,0.10573,2967.3,2966.6,3.371]
[1766486433644,3.371,2967.4,2966.6,3.371]
[1766486434855,0.16862,2967.3,2966.6,3.371]
[1766486435054,3.371,2967.4,2966.7,1.24845306]
[1766486435249,3.1217,2967.4,2966.7,1.24845306]
[1766486435452,3.4195,2967.7,2966.7,1.19995306]
[1766486435657,0.16862,2967.3,2966.8,0.0485]
[1766486435958,0.16862,2967.3,2966.9,3.371]
[1766486436161,3.4314,2967.7,2966.9,3.371]
[1766486437063,0.16862,2967.3,2966.9,8.681]
[1766486437661,3.371,2967.7,2966.9,8.681]
[1766486437852,3.371,2967.7,2967.0,0.0638]
[1766486438058,3.1951,2967.7,2967.0,0.0638]
[1766486438261,3.1951,2967.7,2966.9,8.681]
[1766486442958,0.16858,2967.9,2967.2,1.19995306]
[1766486443254,0.16858,2967.9,2967.3,9.277]
[1766486443458,0.16858,2967.9,2967.3,9.3443]
[1766486443661,0.16858,2967.9,2967.3,9.277]
[1766486468577,0.16858,2967.9,2966.8,41.99988287]
[1766486468578,0.16858,2967.9,2967.4,9.276]
[1766486469778,0.00505364,2968.3,2967.4,9.276]
[1766486469974,0.00505364,2968.3,2967.4,10.47588287]
[1766486470175,3.37398089,2968.5,2967.4,10.47588287]
[1766486470477,3.05978089,2968.5,2967.5,0.0417]
[1766486470678,0.16856,2968.4,2967.5,0.0417]
[1766486470877,0.16856,2968.4,2967.4,10.47588287]
[1766486471066,0.16856,2968.4,2967.5,0.048]
[1766486471483,0.1713643,2968.4,2967.4,10.47588287]
[1766486471682,0.1713643,2968.4,2967.5,0.048]
[1766486472185,0.1713643,2968.4,2967.4,10.47588287]
[1766486472384,0.1713643,2968.4,2967.5,0.048]
[1766486472882,0.1713643,2968.4,2967.4,10.47588287]
[1766486473084,0.1713643,2968.4,2967.5,0.048]
[1766486473583,0.1713643,2968.4,2967.4,10.47588287]
[1766486473785,0.1713643,2968.4,2967.5,0.048]
[1766486474385,0.1713643,2968.4,2967.4,10.47588287]